bitfinex/quotes_ETHUSD_20240917
["timestamp","ask_amount","ask_price","bid_price","bid_amount"]
[1726582051501,5.56319334,2322.8,2322.6,4.30542]
[1726582051828,0.45099415,2323.1,2322.6,4.30542]
[1726582051829,0.45099415,2323.1,2323.0,4.30477]
[1726582052041,0.45099415,2323.1,2322.8,4.30498]
[1726582052240,2.4128,2323.2,2322.8,4.30498]
[1726582053110,4.30488,2323.0,2322.4,8.166956]
[1726582053469,4.30488,2323.0,2322.5,5.3601356]
[1726582053470,4.30487,2323.0,2322.5,5.3601356]
[1726582053739,2.4128,2323.2,2322.4,4.30577]
[1726582053740,4.30496,2322.9,2322.4,4.30577]
[1726582054134,4.30478,2323.0,2322.5,4.30568]
[1726582054630,4.3047,2323.1,2322.3,5.3783]
[1726582054631,4.30497,2322.9,2322.3,5.3783]
[1726582054829,4.30497,2322.9,2322.5,4.30569]
[1726582055032,4.30541,2322.7,2322.1,2.3923]
[1726582055334,6.71961,2322.7,2322.3,4.30606]
[1726582055627,6.71961,2322.7,2322.3,4.30596]
[1726582055628,2.4142,2322.7,2322.3,4.30596]
[1726582055802,6.71956,2322.7,2322.3,4.30596]
[1726582056006,6.71956,2322.7,2322.2,4.30625]
[1726582056218,6.71956,2322.7,2322.1,4.30631]
[1726582056515,4.30483,2323.0,2322.5,4.25553]
[1726582056516,2.2697,2323.0,2322.5,4.25553]
[1726582056719,2.2697,2323.0,2322.5,4.30562]
[1726582056923,6.57448,2323.0,2322.5,4.30561]
[1726582057522,6.57448,2323.0,2322.6,4.3055]
[1726582057723,4.30507,2322.9,2322.5,4.30569]
[1726582057914,6.57448,2323.0,2322.5,4.30559]
[1726582058837,2.2697,2323.0,2322.6,4.30538]
[1726582059141,4.30505,2322.9,2322.4,4.30587]
[1726582059435,6.80156,2323.0,2322.5,8.61112]
[1726582059640,6.80156,2323.0,2322.5,4.30553]
[1726582059849,6.57456,2323.0,2322.5,4.30553]
[1726582060376,6.57456,2323.0,2322.6,4.30551]
[1726582061548,2.2697,2323.0,2322.7,4.30532]
[1726582061845,4.30443,2323.2,2322.7,8.61044]
[1726582062013,2.4678,2323.3,2322.8,4.305]
[1726582062218,2.4678,2323.6,2322.8,5.49169386]
[1726582062410,2.4678,2323.6,2323.3,4.3041]
[1726582062604,7.52213334,2323.8,2323.1,4.30457]
[1726582062605,2.4678,2323.8,2323.1,4.30457]
[1726582062804,2.4678,2323.8,2323.4,4.30395]
[1726582063050,2.4678,2323.8,2323.6,4.30366]
[1726582063250,2.2713,2324.0,2323.6,4.30366]
[1726582063454,0.0385453,2323.7,2323.6,4.30366]
[1726582065462,0.0385453,2323.7,2323.6,8.60732]
[1726582065762,0.0385453,2323.7,2323.6,4.30366]
[1726582066623,0.0385453,2323.7,2323.6,5.164397]
[1726582067565,0.0385453,2323.7,2323.6,4.30366]
[1726582070373,0.0385453,2323.7,2323.6,8.60732]
[1726582073355,0.0385453,2323.7,2323.6,4.30366]
[1726582074137,0.0385453,2323.7,2323.5,4.30381]
[1726582074334,0.0385453,2323.7,2323.4,4.30403]
[1726582074540,0.0385453,2323.7,2323.5,4.30382]
[1726582074773,0.0385453,2323.7,2323.6,4.30366]
[1726582075180,2.3420453,2323.7,2323.3,4.30414]
[1726582075351,2.57624983,2323.7,2323.3,4.30414]
[1726582075556,2.57624983,2323.7,2323.3,4.30408]
[1726582075758,2.57624983,2323.7,2323.1,6.76817]
[1726582075759,4.30387,2323.5,2323.1,6.76817]
[1726582076114,2.57624983,2323.7,2323.2,4.30423]
[1726582076115,4.30377,2323.6,2323.2,4.30423]
[1726582077415,4.30375,2323.6,2323.2,4.30423]
[1726582077731,5.42209398,2323.6,2323.2,4.30423]
[1726582078518,5.42209398,2323.6,2323.0,4.30461]
[1726582078519,4.30413,2323.4,2322.9,4.30496]
[1726582078808,4.30411,2323.4,2323.0,4.30475]
[1726582079009,4.30411,2323.4,2323.0,8.6095]
[1726582079216,4.30411,2323.4,2323.0,4.30475]
[1726582080105,2.4416,2323.5,2323.1,4.30457]
[1726582080106,6.74547,2323.5,2323.1,4.30457]
[1726582080483,3.68563938,2323.5,2323.0,4.30476]
[1726582080684,4.30416,2323.4,2322.9,7.30482]
[1726582080874,2.4416,2323.5,2323.1,4.30457]
[1726582080875,6.74547,2323.5,2323.1,4.30457]
[1726582081154,6.74547,2323.5,2323.2,4.30433]
[1726582081155,2.4416,2323.5,2323.2,4.30433]
[1726582081290,0.27274983,2323.7,2323.3,4.30408]
[1726582081291,2.65734983,2323.7,2323.3,4.30408]
[1726582081675,2.65734983,2323.7,2323.4,4.30402]
[1726582082230,6.96083983,2323.7,2323.3,4.30418]
[1726582082771,4.30377,2323.6,2323.2,4.30436]
[1726582082985,6.96083983,2323.7,2323.2,4.30429]
[1726582083172,8.60755,2323.6,2323.1,4.30448]
[1726582083397,4.30375,2323.6,2323.1,4.30448]
[1726582083776,4.30375,2323.6,2323.2,4.3044]
[1726582084173,4.30395,2323.5,2323.1,4.30448]
[1726582084524,4.30389,2323.5,2323.1,4.3045]
[1726582084682,5.43016098,2323.6,2323.2,4.30439]
[1726582084881,1.12645098,2323.6,2323.2,4.30439]
[1726582085181,2.4231453,2323.7,2322.9,2.4484]
[1726582085405,2.4231453,2323.7,2323.5,4.30375]
[1726582085620,0.0385453,2323.7,2323.6,4.30366]
[1726582085819,0.0385453,2323.7,2323.6,8.60732]
[1726582086616,0.0385453,2323.7,2323.6,4.30366]
[1726582087446,0.0385453,2323.7,2323.3,2.2539]
[1726582087628,0.0385453,2323.7,2323.6,4.30366]
[1726582089323,0.0385453,2323.7,2323.5,4.30374]
[1726582089526,0.0385453,2323.7,2323.6,4.30366]
[1726582089726,0.0385453,2323.7,2323.6,8.60732]
[1726582091712,0.0385453,2323.7,2323.6,13.92292]
[1726582091905,0.0385453,2323.7,2323.6,16.25914226]
[1726582092121,0.0385453,2323.7,2323.6,20.56280226]
[1726582092809,2.3147453,2324.4,2324.0,4.30286]
[1726582093013,2.3147453,2324.4,2324.0,4.3028]
[1726582093248,6.6169653,2324.4,2324.0,4.30291]
[1726582093685,2.3147453,2324.4,2324.0,4.30283]
[1726582093941,2.3147453,2324.4,2324.1,4.30261]
[1726582094149,2.3147453,2324.4,2324.2,4.30255]
[1726582094851,0.0385453,2324.4,2324.3,4.30237]
[1726582095077,0.0385453,2324.4,2324.3,8.60474]
[1726582095458,0.0385453,2324.4,2324.3,4.30237]
[1726582096273,0.0385453,2324.4,2324.3,5.409262]
[1726582096432,0.0385453,2324.4,2324.3,9.711632]
[1726582096635,0.0385453,2324.4,2324.3,12.711632]
[1726582097184,0.0385453,2324.4,2324.3,22.14947462]
[1726582097341,0.0385453,2324.4,2324.3,29.30914462]
[1726582097558,0.0385453,2325.1,2325.0,8.60214]
[1726582097867,0.0385453,2325.1,2325.0,5.161284]
[1726582098064,0.0385453,2325.1,2325.0,0.860214]
[1726582098280,0.0385453,2325.1,2325.0,5.161284]
[1726582098431,0.0385453,2325.1,2325.0,0.860214]
[1726582098636,0.0385453,2325.1,2325.0,5.161284]
[1726582098829,0.0385453,2325.1,2325.0,0.860214]
[1726582099036,0.0385453,2325.1,2324.9,2.3073]
[1726582099432,0.0385453,2325.1,2324.9,5.3073]
[1726582099768,0.0385453,2325.1,2325.0,4.30107]
[1726582100472,0.0385453,2325.1,2325.0,10.91174]
[1726582100688,0.0385453,2325.1,2325.0,24.98945662]
[1726582102342,0.0385453,2325.1,2325.0,29.29052662]
[1726582102538,0.0385453,2325.1,2325.0,36.2905227]
[1726582102739,0.0385453,2325.7,2325.6,10.90662]
[1726582103146,0.0385453,2325.7,2325.6,8.59992]
[1726582103347,0.0385453,2325.7,2325.6,9.690582]
[1726582103649,0.0385453,2325.7,2325.6,12.690582]
[1726582104043,0.0385453,2325.7,2325.6,16.990542]
[1726582104541,0.0385453,2325.7,2325.6,29.34027462]
[1726582104746,0.0385453,2325.7,2325.6,33.64023462]
[1726582104973,0.0385453,2325.7,2325.6,36.33482127]
[1726582105394,0.0385453,2326.4,2325.6,36.33482127]
[1726582105395,0.0385453,2326.4,2326.3,10.96164]
[1726582105545,0.0385453,2326.4,2326.3,13.00125026]
[1726582105744,0.45020611,2326.8,2326.3,13.00125026]
[1726582105745,0.38875141,2326.8,2326.3,8.70258026]
[1726582105949,0.38875141,2326.8,2326.1,4.29893]
[1726582105950,4.68662141,2326.8,2326.1,4.29893]
[1726582106258,4.29775,2326.8,2326.1,3.0]
[1726582106443,4.29775,2326.8,2326.2,4.29872]
[1726582106650,4.29812,2326.6,2326.0,2.3234]
[1726582106844,2.4293,2326.9,2326.2,4.29885]
[1726582107476,2.4293,2326.9,2326.4,4.29831]
[1726582109583,2.4293,2326.9,2326.2,4.29873]
[1726582109787,6.72703,2326.9,2326.4,4.29843]
[1726582110012,2.4293,2326.9,2326.4,4.29843]
[1726582110213,6.72697,2326.9,2326.3,4.29853]
[1726582110514,6.72697,2326.9,2326.0,2.3234]
[1726582110515,2.4293,2326.9,2326.4,0.0859647]
[1726582110717,2.4293,2326.9,2326.3,4.29853]
[1726582110888,6.7269,2326.9,2326.4,4.29846]
[1726582111230,6.72689,2326.9,2326.3,4.29853]
[1726582111403,7.40269743,2326.9,2326.3,8.59704]
[1726582111715,7.40269743,2326.9,2326.3,8.59708]
[1726582111873,3.10510743,2326.9,2326.2,4.2988]
[1726582112078,3.10510743,2326.9,2326.1,7.29898]
[1726582112079,3.10510743,2326.9,2326.1,7.29891]
[1726582112279,2.4339,2326.5,2326.0,3.0]
[1726582112482,2.4339,2326.5,2326.2,4.29874]
[1726582113285,2.3722,2326.7,2326.3,4.38452877]
[1726582113577,2.3722,2326.7,2326.3,5.03701288]
[1726582113899,2.3722,2326.7,2326.3,4.29856]
[1726582114411,2.3722,2327.0,2326.5,4.2983]
[1726582114591,6.66958,2327.0,2326.5,4.29827]
[1726582114776,2.3722,2327.0,2326.6,4.29805]
[1726582114978,2.3722,2327.0,2326.7,4.29784]
[1726582115194,4.29774,2326.9,2326.4,4.29839]
[1726582115388,4.29774,2326.9,2326.4,8.59676]
[1726582115981,2.3722,2327.0,2326.6,4.29808]
[1726582116183,2.3722,2327.0,2326.6,4.29803]
[1726582116492,4.29765,2326.9,2326.5,4.2983]
[1726582116694,4.29765,2326.9,2326.4,4.29846]
[1726582117287,4.29765,2326.9,2326.5,4.29828]
[1726582117505,6.6696,2327.0,2326.5,4.29828]
[1726582117889,4.29757,2326.9,2326.4,8.59685]
[1726582118101,4.29757,2326.9,2326.4,8.59678]
[1726582118444,4.29786,2326.8,2326.3,4.29865]
[1726582118723,4.29759,2326.9,2326.4,8.59676]
[1726582119022,4.29759,2326.9,2326.4,4.29838]
[1726582119227,4.29759,2326.9,2325.6,5.390452]
[1726582119228,2.2525,2326.4,2325.9,4.29928]
[1726582119378,0.65614473,2326.4,2326.1,4.29902]
[1726582119583,0.65614473,2326.4,2325.9,4.29928]
[1726582119923,4.95474473,2326.4,2325.9,4.29938]
[1726582120084,4.95474473,2326.4,2325.6,9.55028359]
[1726582120085,4.29867,2326.3,2325.7,4.29974]
[1726582120281,4.29924,2326.0,2325.4,4.30025]
[1726582120526,4.29927,2326.0,2325.3,4.3004]
[1726582120679,8.5993,2325.8,2325.3,4.3004]
[1726582120881,4.29962,2325.8,2325.2,2.2773]
[1726582121083,4.29928,2326.0,2325.5,4.30013]
[1726582121322,4.29919,2326.1,2325.6,4.29995]
[1726582121503,0.49547447,2326.4,2325.6,4.29982]
[1726582121855,4.2988,2326.3,2325.7,4.29968]
[1726582122008,4.29904,2326.1,2325.7,4.29968]
[1726582122542,6.73446,2326.1,2325.5,4.29997]
[1726582122754,4.2996,2325.8,2325.3,4.30038]
[1726582122904,4.2996,2325.8,2325.0,0.4319]
[1726582122905,2.4354,2325.9,2325.4,4.30024]
[1726582123105,2.4354,2325.9,2325.5,4.30014]
[1726582123304,2.4354,2325.9,2325.4,4.30024]
[1726582123718,2.4354,2325.9,2325.7,4.29977]
[1726582124609,2.4354,2325.9,2325.5,4.30004]
[1726582125419,6.73485,2325.9,2325.4,4.30031]
[1726582125754,12.137838,2325.9,2325.4,4.3003]
[1726582125914,4.29976,2325.8,2325.3,4.30051]
[1726582126122,4.29976,2325.8,2325.2,4.30061]
[1726582126317,4.29987,2325.7,2325.2,4.730741]
[1726582126553,4.29961,2325.8,2325.3,4.30051]
[1726582126873,4.29961,2325.8,2325.1,4.30088]
[1726582126874,4.30009,2325.6,2325.1,4.30088]
[1726582127078,2.4623,2325.7,2325.2,4.30057]
[1726582127366,2.4623,2325.7,2325.3,4.30043]
[1726582127666,2.4623,2325.7,2325.3,4.3005]
[1726582127813,2.4623,2325.7,2325.3,8.60094]
[1726582128016,2.4623,2325.7,2325.2,0.860145]
[1726582128017,2.4277,2325.9,2325.6,4.29996]
[1726582128339,2.4277,2326.3,2325.9,4.29922]
[1726582128668,2.3829,2327.0,2326.8,4.29771]
[1726582128819,2.3829,2327.0,2326.7,4.29791]
[1726582129019,2.3829,2327.0,2326.6,4.298]
[1726582129215,2.3829,2327.0,2326.4,4.29833]
[1726582129433,2.3065,2326.8,2326.2,4.29873]
[1726582129630,7.264715,2326.8,2326.2,4.29873]
[1726582129816,7.264715,2326.8,2326.1,4.29887]
[1726582129817,2.966915,2326.8,2326.1,4.29887]
[1726582130033,7.264755,2326.8,2326.0,4.29908]
[1726582130224,4.29804,2326.7,2326.1,4.29903]
[1726582130416,2.966915,2326.8,2326.2,4.29883]
[1726582130661,2.966915,2326.8,2326.2,4.29876]
[1726582131029,2.966915,2326.8,2326.4,4.29843]
[1726582131260,2.966915,2326.8,2326.3,4.29856]
[1726582131261,2.3065,2326.8,2326.3,4.29856]
[1726582131541,6.60425,2326.8,2326.3,4.29856]
[1726582131717,6.60425,2326.8,2326.1,4.29888]
[1726582131916,6.60425,2326.8,2326.2,4.29876]
[1726582132650,6.60425,2326.8,2326.3,4.29866]
[1726582132859,7.69442,2326.8,2326.3,4.29866]
[1726582133029,7.69442,2326.8,2326.1,4.29888]
[1726582133030,7.69442,2326.8,2326.1,4.29887]
[1726582133234,2.3783,2326.7,2326.1,8.59776]
[1726582133555,6.67636,2326.7,2326.1,4.29887]
[1726582133726,6.67636,2326.7,2326.2,4.2987]
[1726582133925,2.3783,2326.7,2326.3,4.29855]
[1726582134456,6.67635,2326.7,2326.1,4.29888]
[1726582134769,6.67635,2326.7,2325.9,2.984152]
[1726582134770,4.29821,2326.6,2326.0,4.29913]
[1726582135052,4.2982,2326.6,2326.1,4.29902]
[1726582135255,2.3783,2326.7,2326.1,4.29902]
[1726582135565,2.3783,2326.7,2326.2,4.29876]
[1726582135716,2.3783,2326.7,2326.2,8.59745]
[1726582135920,2.3783,2326.7,2326.4,4.29847]
[1726582136237,2.3783,2326.7,2326.3,4.29865]
[1726582136457,2.3783,2326.7,2326.3,8.59719]
[1726582136760,2.3783,2326.7,2326.3,4.29854]
[1726582136915,6.67624,2326.7,2326.3,4.29853]
[1726582137489,7.343864,2326.7,2326.2,4.29883]
[1726582137656,2.3783,2326.7,2326.3,4.29865]
[1726582138027,6.67624,2326.7,2326.2,4.29882]
[1726582138650,2.3783,2326.7,2326.3,4.29862]
[1726582139143,6.67633,2326.7,2326.2,4.29873]
[1726582139472,7.77375,2326.7,2326.2,4.29873]
[1726582139625,7.77375,2326.7,2326.1,4.29902]
[1726582139626,4.29818,2326.6,2326.1,8.59792]
[1726582139818,7.77375,2326.7,2326.2,4.29878]
[1726582140024,7.77375,2326.7,2326.3,4.29866]
[1726582140253,12.07179,2326.7,2326.2,4.29878]
[1726582140459,7.77375,2326.7,2326.2,8.59756]
[1726582140664,2.3783,2326.7,2326.3,4.29863]
[1726582140958,2.4277,2326.2,2325.7,2.2796]
[1726582141182,2.4277,2326.5,2326.2,4.29874]
[1726582141664,2.4277,2326.5,2326.1,4.29896]
[1726582141819,2.4277,2326.5,2326.0,4.29904]
[1726582141820,6.72601,2326.5,2326.0,4.2992]
[1726582142023,2.4277,2326.5,2326.1,4.29897]
[1726582142248,4.2987,2326.3,2325.9,4.29937]
[1726582142476,0.37148008,2326.2,2326.0,4.29912]
[1726582142705,2.4277,2326.3,2326.0,4.29912]
[1726582142965,2.4277,2326.3,2326.1,4.29902]
[1726582143169,2.4277,2326.3,2325.8,1.61909323]
[1726582143325,2.4277,2326.3,2325.9,6.9994916]
[1726582143662,0.37149997,2326.2,2326.0,4.29919]
[1726582143832,2.4277,2326.3,2326.1,4.29893]
[1726582144036,0.37148608,2326.2,2325.8,4.90254069]
[1726582144229,6.72645,2326.3,2325.9,4.29924]
[1726582144230,2.4277,2326.3,2325.9,4.29924]
[1726582144429,0.37144059,2326.2,2325.9,4.29924]
[1726582144839,0.37144059,2326.2,2326.0,4.29917]
[1726582145039,0.37144059,2326.2,2326.0,4.29913]
[1726582145245,0.37144059,2326.2,2326.1,4.29904]
[1726582145427,2.4649,2326.6,2326.5,4.2983]
[1726582145622,2.4649,2326.6,2326.1,5.158837]
[1726582145623,3.43083868,2326.6,2326.4,4.29839]
[1726582145858,0.37151811,2326.5,2326.4,4.29839]
[1726582146070,0.37151811,2326.5,2326.4,8.68283789]
[1726582146237,2.3551,2327.0,2326.7,4.29791]
[1726582146435,0.9661118,2326.9,2326.7,4.29791]
[1726582146640,5.2637018,2326.9,2326.4,1.76933302]
[1726582146840,7.6353418,2326.8,2326.3,4.29852]
[1726582147042,4.29753,2327.0,2326.1,0.90104923]
[1726582147043,6.63862,2326.6,2326.1,0.90104923]
[1726582147259,0.9661118,2326.5,2326.1,4.2989]
[1726582147427,0.96601922,2326.4,2326.1,4.2989]
[1726582147642,0.37158146,2326.3,2326.1,8.59785]
[1726582147855,2.3404,2326.6,2326.1,8.59785]
[1726582148088,7.73222,2326.6,2326.0,4.2992]
[1726582148388,6.5759,2326.5,2326.0,4.29921]
[1726582148574,6.5759,2326.5,2325.9,4.29937]
[1726582148575,7.54178713,2326.5,2325.9,4.29937]
[1726582148755,7.54178713,2326.5,2326.0,4.29912]
[1726582148958,9.42950253,2326.5,2326.0,4.29912]
[1726582149169,2.409,2326.3,2325.8,8.59894]
[1726582149360,2.409,2326.3,2325.6,0.90104923]
[1726582149558,0.37154307,2326.2,2325.7,3.59970915]
[1726582149892,0.37154307,2326.1,2325.9,4.2993]
[1726582150068,2.409,2326.3,2326.0,4.29922]
[1726582150247,2.409,2326.3,2325.6,5.20093923]
[1726582150248,0.96593071,2326.2,2325.7,1.61913304]
[1726582150489,0.37151181,2326.1,2325.5,3.90104923]
[1726582150783,0.37151181,2326.0,2325.8,4.29948]
[1726582150985,2.409,2326.3,2326.0,4.29914]
[1726582151186,0.37140675,2326.2,2326.1,4.29901]
[1726582152154,0.64944743,2326.2,2325.5,0.90104923]
[1726582152490,4.29943,2325.9,2325.4,4.30032]
[1726582152648,2.68570675,2325.8,2325.3,8.60083]
[1726582152853,0.37140675,2325.7,2325.4,4.30031]
[1726582153060,0.37140675,2325.6,2325.1,4.30076]
[1726582153364,0.37140675,2325.5,2325.2,4.30068]
[1726582153551,7.26181626,2325.8,2325.3,4.30051]
[1726582153752,7.26181626,2325.8,2325.5,4.30001]
[1726582153753,0.3713489,2325.7,2325.5,4.30001]
[1726582154059,0.37135391,2325.6,2325.5,4.30001]
[1726582154400,2.3143,2325.8,2325.5,4.30001]
[1726582154401,0.371393,2325.7,2325.5,4.30001]
[1726582154559,0.371393,2325.6,2325.5,4.30001]
[1726582154756,2.3143,2325.8,2325.5,8.60007]
[1726582155090,0.37138929,2325.6,2325.5,4.30001]
[1726582155256,0.37138929,2325.7,2325.5,4.30001]
[1726582155459,4.29882,2326.3,2325.7,4.29978]
[1726582155460,2.2811,2326.2,2325.7,4.29978]
[1726582155675,0.96570584,2326.1,2325.7,4.29978]
[1726582155997,0.96570584,2326.0,2325.6,4.29986]
[1726582156150,2.2761,2325.8,2325.6,4.29986]
[1726582156470,0.37142532,2325.7,2325.5,4.30014]
[1726582156675,2.2761,2325.8,2325.5,4.30011]
[1726582156881,0.37127753,2325.7,2325.5,4.30011]
[1726582157054,2.2761,2325.8,2325.5,8.60007]
[1726582157250,0.37127649,2325.7,2325.5,8.6001]
[1726582157458,2.2761,2325.8,2325.5,4.30003]
[1726582157659,0.37129359,2325.7,2325.1,2.392]
[1726582157853,2.3546,2326.0,2325.8,4.29949]
[1726582158076,0.37130051,2325.9,2325.8,4.29949]
[1726582158864,0.3713269,2325.9,2325.8,4.29949]
[1726582159375,0.3713269,2325.9,2325.8,4.29946]
[1726582159580,6.65325,2326.4,2325.9,4.29928]
[1726582159766,0.96544734,2326.3,2326.0,4.2992]
[1726582159961,0.96544734,2326.2,2325.4,2.4294]
[1726582160173,2.3546,2326.4,2326.1,4.29904]
[1726582160394,0.96550589,2326.3,2326.1,4.29904]
[1726582160598,0.96550589,2326.2,2326.1,4.29904]
[1726582160772,2.2897,2326.1,2325.7,4.29976]
[1726582160957,0.37134842,2326.0,2325.8,4.29941]
[1726582161156,0.37134842,2326.0,2325.9,4.29941]
[1726582161582,2.2897,2326.1,2325.9,4.29941]
[1726582161796,2.2897,2326.1,2325.8,4.29941]
[1726582162000,0.37131559,2326.0,2325.8,4.29941]
[1726582162166,2.2897,2326.1,2325.9,4.29941]
[1726582162371,0.3713897,2326.0,2325.9,4.29941]
[1726582163694,2.3444,2326.3,2326.1,4.29885]
[1726582163900,4.29814,2326.6,2326.1,4.29885]
[1726582163901,0.96590456,2326.2,2326.1,4.29885]
[1726582164103,0.37150175,2326.2,2326.1,4.29885]
[1726582165503,0.37144963,2326.2,2326.1,4.29885]
[1726582166193,0.37144963,2326.2,2326.0,4.29919]
[1726582166448,0.37144963,2326.1,2326.0,4.29919]
[1726582166611,0.37144963,2326.1,2325.7,6.68876]
[1726582166612,2.3444,2326.5,2326.1,4.29892]
[1726582166821,3.008652,2326.5,2326.1,4.29892]
[1726582167041,3.008652,2326.5,2326.1,4.29891]
[1726582167225,0.9657757,2326.4,2326.1,4.29891]
[1726582167646,0.9657757,2326.3,2326.1,4.29891]
[1726582167850,7.306972,2326.5,2326.1,4.29891]
[1726582168016,0.96579863,2326.3,2326.1,4.29891]
[1726582168214,0.91579863,2326.3,2326.1,4.29891]
[1726582168453,0.91579863,2326.4,2326.1,4.29891]
[1726582168656,0.59431112,2326.3,2326.2,4.29871]
[1726582168961,2.3444,2326.5,2326.3,4.29858]
[1726582169333,2.3444,2326.5,2326.2,4.29871]
[1726582169531,0.59366288,2326.4,2326.2,4.29871]
[1726582169742,0.59366288,2326.4,2326.3,4.29867]
[1726582170061,1.18725276,2326.4,2326.3,4.29867]
[1726582170259,1.13725276,2326.4,2326.3,4.29867]
[1726582170715,0.54366288,2326.4,2326.3,4.29867]
[1726582171165,0.54366288,2326.4,2326.2,4.29884]
[1726582171322,0.54366288,2326.4,2326.2,4.29871]
[1726582171526,0.54366288,2326.4,2326.0,4.29905]
[1726582171761,0.54366288,2326.4,2326.2,4.29872]
[1726582171931,0.54366288,2326.4,2326.3,4.29867]
[1726582172751,0.54366288,2326.4,2326.3,8.59734]
[1726582173839,0.54366288,2326.4,2326.3,12.89601]
[1726582174550,2.3829,2326.9,2326.3,12.89601]
[1726582174551,2.3829,2326.9,2326.7,4.29779]
[1726582174865,2.4179389,2327.1,2326.9,4.29754]
[1726582175024,2.4179389,2327.1,2326.8,4.29773]
[1726582175422,2.3679389,2327.1,2326.8,4.29773]
[1726582175761,2.3679389,2327.1,2326.5,2.3265]
[1726582175762,10.8249934,2327.1,2326.6,4.29809]
[1726582175974,1.08249934,2327.0,2326.6,4.29809]
[1726582176459,4.29757,2326.9,2326.5,4.2982]
[1726582176835,4.29757,2326.9,2326.3,4.2985]
[1726582176836,4.1597945,2326.9,2326.3,4.2985]
[1726582177038,4.29782,2326.8,2326.4,4.2984]
[1726582177352,8.59574,2326.8,2326.3,4.2985]
[1726582177554,1.27555345,2326.7,2326.3,4.2985]
[1726582177858,1.27555345,2326.7,2326.4,4.29845]
[1726582178458,4.29782,2326.8,2326.4,4.29845]
[1726582178630,2.3009,2326.7,2326.5,4.2983]
[1726582179412,2.3009,2326.7,2326.4,4.29845]
[1726582179682,2.3009,2326.7,2326.2,4.29874]
[1726582179829,2.3009,2326.7,2326.3,4.29859]
[1726582179830,2.75113589,2326.7,2326.3,4.29859]
[1726582180025,3.82698134,2326.7,2326.3,4.29859]
[1726582180336,0.96323365,2326.6,2326.3,4.29859]
[1726582180537,4.16143502,2326.5,2325.8,2.4239]
[1726582180746,4.16143502,2326.5,2326.0,4.29906]
[1726582180747,2.3009,2326.3,2326.0,4.29906]
[1726582180958,2.3009,2326.3,2326.1,4.29902]
[1726582181269,2.3009,2326.3,2326.2,4.29885]
[1726582181495,4.29814,2326.6,2326.2,4.29885]
[1726582181496,0.96312,2326.4,2326.2,4.29885]
[1726582181654,2.3009,2326.6,2326.3,4.29867]
[1726582181968,0.96328302,2326.5,2326.2,4.29882]
[1726582182261,0.96328302,2326.4,2326.2,4.29878]
[1726582182468,0.96328302,2326.3,2326.1,4.29889]
[1726582182648,0.96328302,2326.2,2326.1,4.29889]
[1726582182856,6.5991,2326.6,2326.1,4.29889]
[1726582182857,5.26189084,2326.5,2326.1,4.29889]
[1726582183022,1.71977992,2326.4,2326.1,4.29889]
[1726582183227,0.96350084,2326.3,2326.1,4.29889]
[1726582183839,0.96350084,2326.2,2326.1,4.29888]
[1726582184375,0.96363885,2326.2,2326.1,4.29888]
[1726582184526,0.96363885,2326.2,2326.1,4.29904]
[1726582184725,0.37063033,2326.2,2326.1,4.29904]
[1726582184961,0.96363885,2326.2,2326.1,4.29904]
[1726582185365,0.96363885,2326.4,2326.1,4.29904]
[1726582185572,0.96363885,2326.3,2326.1,4.29904]
[1726582185770,0.96363885,2326.2,2325.9,4.29932]
[1726582185957,1.18610989,2326.4,2326.1,4.29904]
[1726582186131,0.96366471,2326.3,2326.1,4.29904]
[1726582186331,0.96366471,2326.2,2326.0,4.2992]
[1726582186528,0.96366471,2326.1,2326.0,4.2992]
[1726582186828,0.59302444,2326.1,2326.0,4.2992]
[1726582187071,0.37064027,2326.2,2326.0,4.2992]
[1726582187366,0.96366471,2326.1,2326.0,4.2992]
[1726582187663,0.96366471,2326.3,2326.0,4.2992]
[1726582187830,0.96366471,2326.2,2326.0,4.2992]
[1726582188023,0.96366471,2326.1,2326.0,4.2992]
[1726582188272,0.96366471,2326.3,2326.0,4.2992]
[1726582188574,0.96366471,2326.2,2326.0,4.2992]
[1726582188804,0.96366471,2326.1,2326.0,4.2992]
[1726582188959,5.92305149,2326.4,2326.1,4.29896]
[1726582188960,0.96375625,2326.3,2326.1,4.29896]
[1726582189131,0.37068918,2326.2,2326.1,4.29896]
[1726582189327,5.26215359,2326.5,2326.1,4.29896]
[1726582189532,0.96380359,2326.4,2326.2,4.29885]
[1726582189733,0.96380359,2326.3,2326.2,4.29885]
[1726582189972,0.37068918,2326.3,2326.2,4.29885]
[1726582190176,2.4245,2326.2,2325.8,4.29946]
[1726582190345,0.96380359,2326.1,2325.5,2.4469]
[1726582190550,0.96380359,2326.0,2325.8,4.29951]
[1726582190905,0.96380359,2325.9,2325.8,8.5991]
[1726582191077,2.70401892,2326.2,2325.5,6.74701]
[1726582191078,2.4245,2326.2,2325.9,4.29926]
[1726582191236,4.29861,2326.4,2325.9,4.29926]
[1726582191237,0.9639018,2326.1,2326.0,4.29922]
[1726582191653,0.9639018,2326.1,2326.0,8.59844]
[1726582191976,2.2646,2326.4,2326.1,4.29903]
[1726582192428,2.2646,2326.4,2326.0,4.29919]
[1726582192429,0.9640539,2326.3,2326.0,4.29919]
[1726582192641,0.9640539,2326.2,2326.0,4.29919]
[1726582192845,0.9640539,2326.1,2325.9,4.29932]
[1726582193041,0.9640539,2326.0,2325.9,4.29932]
[1726582193341,5.9013735,2326.3,2325.8,4.2995]
[1726582193342,0.9640539,2326.2,2325.8,4.2995]
[1726582193669,10.06280852,2326.3,2325.8,8.59899]
[1726582193670,0.9640539,2326.1,2325.8,8.59899]
[1726582193873,0.9640539,2326.0,2325.8,4.29949]
[1726582194195,0.9640539,2325.9,2325.8,4.29949]
[1726582194346,0.9640539,2326.1,2325.8,4.29949]
[1726582194545,0.9640539,2326.0,2325.8,4.29949]
[1726582194883,0.9640539,2325.9,2325.8,4.29949]
[1726582195089,2.74050797,2326.0,2325.8,4.29949]